bitfinex-derivatives/quotes_BNBF0:USTF0_20250710
["timestamp","ask_amount","ask_price","bid_price","bid_amount"]
[1752185735741,0.86866039,685.29,683.39,3.23696634]
[1752185735742,0.86866039,685.28,684.21,1.94938658]
[1752185735942,0.86866039,685.27,684.21,1.94938658]
[1752185736242,0.86866039,685.26,684.2,1.94938658]
[1752185736443,0.86866039,685.25,684.22,0.377]
[1752185736736,0.86866039,685.24,684.22,0.377]
[1752185736938,0.97881454,685.63,684.22,0.377]
[1752185737142,0.86738937,685.62,684.22,2.32638658]
[1752185737343,0.86738937,685.61,684.22,0.377]
[1752185737542,0.86738937,685.6,684.22,2.32638658]
[1752185737744,0.86738937,685.59,684.25,1.94938658]
[1752185737944,0.86738937,685.58,684.25,1.94938658]
[1752185738244,0.86738937,685.57,684.25,1.94938658]
[1752185738444,0.86738937,685.56,684.24,1.94938658]
[1752185738642,0.86738937,685.55,684.24,1.94938658]
[1752185738942,0.86738937,685.54,684.24,1.94938658]
[1752185739142,0.86738937,685.53,684.24,1.94938658]
[1752185739343,0.86738937,685.52,684.24,1.94938658]
[1752185739544,0.86738937,685.51,684.24,1.94938658]
[1752185739744,0.86738937,685.5,684.24,1.94938658]
[1752185739945,0.86738937,685.49,684.24,1.94938658]
[1752185740140,0.86738937,685.48,684.23,1.94938658]
[1752185740340,0.97881454,685.69,684.22,2.32638658]
[1752185740341,0.86738937,685.47,684.22,2.32638658]
[1752185740541,0.86738937,685.46,684.23,1.94938658]
[1752185740744,0.86738937,685.45,684.23,1.94938658]
[1752185740941,0.86738937,685.44,684.23,1.94938658]
[1752185741141,0.86738937,685.43,684.22,2.32638658]
[1752185741343,0.86738937,685.42,684.22,0.377]
[1752185741545,0.86738937,685.41,684.26,1.94938658]
[1752185741838,0.86738937,685.4,684.28,1.94938658]
[1752185742041,0.86738937,685.39,684.28,1.94938658]
[1752185742240,0.86738937,685.38,684.28,1.94938658]
[1752185742544,0.86738937,685.37,684.28,1.94938658]
[1752185742745,0.86738937,685.36,684.29,1.94938658]
[1752185742946,0.86738937,685.35,684.29,1.94938658]
[1752185743246,0.97881454,685.61,684.37,1.94938658]
[1752185743447,0.86707776,685.6,684.38,1.94938658]
[1752185743647,0.86707776,685.59,684.38,1.94938658]
[1752185743943,0.86707776,685.58,684.38,1.94938658]
[1752185744142,0.86707776,685.57,684.38,1.94938658]
[1752185744348,0.86707776,685.56,684.38,1.94938658]
[1752185744646,0.86707776,685.55,684.38,1.94938658]
[1752185744843,0.86707776,685.54,684.38,1.94938658]
[1752185745045,0.86707776,685.53,684.38,1.94938658]
[1752185745341,0.86707776,685.52,684.38,1.94938658]
[1752185745543,0.86707776,685.51,684.38,1.94938658]
[1752185745742,0.86707776,685.5,684.38,1.94938658]
[1752185745941,0.86707776,685.49,684.38,1.94938658]
[1752185746143,0.86707776,685.48,684.36,1.94938658]
[1752185746343,0.86707776,685.47,684.36,1.94938658]
[1752185746643,0.86707776,685.46,684.36,1.94938658]
[1752185746941,0.86707776,685.45,684.36,1.94938658]
[1752185747142,0.86707776,685.44,684.34,1.94938658]
[1752185747347,0.86707776,685.43,684.34,1.94938658]
[1752185747543,0.86707776,685.42,684.34,1.94938658]
[1752185747741,0.86707776,685.41,684.34,1.94938658]
[1752185747947,0.86707776,685.4,684.34,1.94938658]
[1752185748247,0.86707776,685.39,684.35,1.94938658]
[1752185748447,0.86707776,685.38,684.35,1.94938658]
[1752185748640,0.86707776,685.37,684.35,1.94938658]
[1752185748943,0.86707776,685.36,684.35,1.94938658]
[1752185749146,0.86707776,685.35,684.35,1.94938658]
[1752185749342,0.97881454,685.61,684.35,1.94938658]
[1752185749343,0.86707776,685.34,684.35,1.94938658]
[1752185749642,0.97881454,685.6,684.35,1.94938658]
[1752185749947,0.86736783,685.59,684.36,1.94938658]
[1752185750246,0.86736783,685.58,684.36,1.94938658]
[1752185750443,0.86736783,685.57,684.36,1.94938658]
[1752185750642,0.86736783,685.56,684.36,1.94938658]
[1752185750844,0.86736783,685.55,684.38,1.94938658]
[1752185751044,0.86736783,685.54,684.37,1.94938658]
[1752185751343,0.86736783,685.53,684.37,1.94938658]
[1752185751542,0.86736783,685.52,684.38,1.94938658]
[1752185751747,0.86736783,685.51,684.38,1.94938658]
[1752185752047,0.86736783,685.5,684.29,1.94938658]
[1752185752344,0.86736783,685.49,684.29,1.94938658]
[1752185752646,0.86736783,685.48,684.29,1.94938658]
[1752185752848,0.86736783,685.47,684.31,1.94938658]
[1752185753047,0.86736783,685.46,684.32,1.94938658]
[1752185753247,0.86736783,685.45,684.34,1.94938658]
[1752185753547,0.86736783,685.44,684.34,1.94938658]
[1752185753747,0.86736783,685.43,684.34,1.94938658]
[1752185753942,0.86736783,685.42,684.34,1.94938658]
[1752185754147,0.86736783,685.41,684.34,1.94938658]
[1752185754344,1.30701585,685.88,684.34,1.94938658]
[1752185754547,0.25384043,686.28,684.22,0.377]
[1752185759853,0.24375039,686.47,684.22,0.377]
[1752185760454,0.24373162,686.55,683.28,0.25416766]
[1752185761855,0.25355745,699.86,683.28,0.25416766]
[1752185764356,0.25355745,699.86,683.29,0.348]
[1752185797884,0.25355745,699.86,684.23,0.24372735]
[1752185825706,0.25355745,699.86,684.24,0.464]
[1752185839715,0.25355745,699.86,684.23,0.24372735]
[1752185843120,0.25355745,699.86,684.24,0.426]
[1752185863230,0.25355745,699.86,684.23,0.24372735]
[1752185867232,0.25355745,699.86,684.24,0.328]
[1752185898259,0.25355745,699.86,684.23,0.24372735]
[1752185900863,0.25355745,699.86,684.24,0.52]
[1752185955924,0.25355745,699.86,684.23,0.24372735]
[1752185958628,0.25355745,699.86,684.24,0.384]
[1752185962130,0.2435082,695.96,684.24,0.384]
[1752185962631,0.2435082,693.04,684.24,0.384]
[1752185963228,0.2435082,690.85,684.24,0.384]
[1752185963633,0.2435082,689.2,684.24,0.384]
[1752185965133,0.2435082,700.1,684.24,0.384]
[1752185970738,0.2435082,700.1,684.23,0.24372735]
[1752185974243,0.2435082,700.1,684.24,0.381]
[1752185993365,0.2435082,700.1,684.23,0.24372735]
[1752185996361,0.2435082,700.1,684.24,0.433]
[1752185998162,0.2435082,700.1,685.28,0.24343836]
[1752186001566,0.2435082,700.1,684.24,0.433]
[1752186001764,0.24343751,696.4,685.91,0.24343751]
[1752186003263,0.24343751,700.52,685.91,0.24343751]
[1752186031986,0.24343751,700.52,685.92,0.43]
[1752186058115,0.24343751,700.52,685.91,0.24343751]
[1752186060820,0.24343751,700.52,685.92,0.377]
[1752186080835,0.24343751,700.52,685.91,0.24343751]
[1752186083351,0.24343751,700.52,685.92,0.511]
[1752186129377,0.24343751,700.52,685.91,0.24343751]
[1752186132777,0.24343751,700.52,685.92,0.359]
[1752186173620,0.24343751,700.52,685.91,0.24343751]
[1752186176217,0.24343751,700.52,685.92,0.434]
[1752186202048,0.24343751,700.52,686.12,0.24335835]
[1752186203563,0.24335749,696.93,686.12,0.24335835]
[1752186204045,0.24335749,694.23,686.12,0.24335835]
[1752186205546,0.2433609,700.57,686.12,0.24335835]
[1752186211854,0.2433609,700.57,686.13,0.459]
[1752186260881,0.2433609,700.57,685.74,0.24348775]
[1752186263478,0.2433609,700.57,685.75,0.395]
[1752186304513,0.2433609,700.57,685.74,0.24348775]
[1752186308013,0.2433609,700.57,685.75,0.447]
[1752186340132,0.2433609,700.57,685.48,0.24355251]
[1752186343437,0.2433609,700.57,685.49,0.413]
[1752186366449,0.2433609,700.57,685.39,0.24357552]
[1752186369353,0.2433609,700.57,685.4,0.346]
[1752186405784,0.24357637,696.78,685.4,0.346]
[1752186406283,0.24357637,693.94,685.4,0.346]
[1752186407885,0.24359513,700.39,685.4,0.346]
[1752186428397,0.24359513,700.39,685.31,0.24359513]
[1752186432299,0.24359513,700.39,685.32,0.202]
[1752186472431,0.24359513,700.39,685.23,0.24688117]
[1752186475633,0.24359513,700.39,685.24,0.228]
[1752186510156,0.25342451,695.11,674.56,0.25342451]
[1752186513457,0.25342451,695.11,674.57,0.131]
[1752186571494,0.25342451,695.11,674.56,0.25342451]
[1752186575599,0.25342451,695.11,674.57,0.133]
[1752186635650,0.25342451,695.11,674.56,0.25342451]
[1752186639752,0.25342451,695.11,674.57,0.175]
[1752186683004,0.97771021,686.67,685.23,1.94727048]
[1752186683297,0.84589401,686.66,685.23,1.94727048]
[1752186683497,0.84589401,686.65,685.2,1.94727048]
[1752186683701,0.84589401,686.64,685.2,1.94727048]
[1752186683898,0.84589401,686.63,685.2,1.94727048]
[1752186684099,0.84589401,686.62,685.22,1.94727048]
[1752186684298,0.84589401,686.61,685.21,1.94727048]
[1752186684505,0.84589401,686.6,685.21,1.94727048]
[1752186684698,0.84589401,686.59,685.21,1.94727048]
[1752186685000,0.84589401,686.58,685.21,1.94727048]
[1752186685203,0.84589401,686.57,685.2,1.94727048]
[1752186685501,0.84589401,686.56,685.2,1.94727048]
[1752186685698,0.84589401,686.55,685.2,1.94727048]
[1752186685899,0.97771021,686.66,685.2,1.94727048]
[1752186685900,0.84589401,686.54,685.2,1.94727048]
[1752186686199,0.84589401,686.53,685.19,1.94727048]
[1752186686402,0.84589401,686.52,685.2,1.94727048]
[1752186686599,0.84589401,686.51,685.2,1.94727048]
[1752186686805,0.84589401,686.5,685.24,1.94727048]
[1752186687102,0.97771021,686.63,685.24,1.94727048]
[1752186687103,0.84589401,686.49,685.24,1.94727048]
[1752186687304,1.30361361,686.83,685.23,1.94727048]
[1752186687604,0.97708268,686.59,685.32,1.94727048]
[1752186687800,0.8453503,686.58,685.32,1.94727048]
[1752186688100,0.8453503,686.57,685.32,1.94727048]
[1752186688300,0.8453503,686.56,685.32,1.94727048]
[1752186688500,0.8453503,686.55,685.33,0.115]
[1752186688702,1.30277691,686.76,685.33,0.115]
[1752186688703,0.8453503,686.54,685.34,1.94727048]
[1752186689006,0.8453503,686.53,685.34,1.94727048]
[1752186689205,0.97708268,686.61,685.33,2.06227048]
[1752186689206,0.8453503,686.52,685.33,2.06227048]
[1752186689402,0.8453503,686.51,685.36,1.94727048]
[1752186689605,0.8453503,686.5,685.35,1.94727048]
[1752186689803,0.8453503,686.49,685.35,1.94727048]
[1752186690006,0.8453503,686.48,685.35,1.94727048]
[1752186690208,0.8453503,686.47,685.35,1.94727048]
[1752186690409,0.8453503,686.46,685.36,1.94727048]
[1752186690609,0.8453503,686.45,685.36,1.94727048]
[1752186690807,0.8453503,686.44,685.36,1.94727048]
[1752186691006,0.8453503,686.43,685.36,1.94727048]
[1752186691210,0.8453503,686.42,685.36,1.94727048]
[1752186691409,0.8453503,686.41,685.37,1.94727048]
[1752186691612,0.8453503,686.4,685.35,1.94727048]
[1752186691806,0.8453503,686.39,685.34,1.94727048]
[1752186692107,0.8453503,686.38,685.34,1.94727048]
[1752186692305,0.8453503,686.37,685.33,2.06227048]
[1752186692507,0.84550733,686.36,685.34,1.94727048]
[1752186692705,0.84550733,686.35,685.34,1.94727048]
[1752186692907,0.84550733,686.34,685.34,1.94727048]
[1752186693207,0.84550733,686.33,685.34,1.94727048]
[1752186693409,0.84550733,686.32,685.35,1.94727048]
[1752186693608,0.84550733,686.31,685.35,1.94727048]
[1752186693809,0.97726416,686.61,685.35,1.94727048]
[1752186694007,0.84561235,686.6,685.35,1.94727048]
[1752186694305,0.84561235,686.59,685.35,1.94727048]
[1752186694507,0.84561235,686.58,685.35,1.94727048]
[1752186694705,0.84561235,686.57,685.35,1.94727048]
[1752186694908,0.84561235,686.56,685.35,1.94727048]
[1752186695108,0.84561235,686.55,685.35,1.94727048]
[1752186695312,0.84562011,686.54,685.35,1.94727048]
[1752186695507,0.84566701,686.53,685.35,1.94727048]
[1752186695812,0.84566701,686.52,685.35,1.94727048]
[1752186696011,0.97744873,686.61,685.35,1.94727048]
[1752186696012,0.84566701,686.51,685.35,1.94727048]
[1752186696213,0.84563963,686.5,685.35,1.94727048]
[1752186696413,0.84568747,686.49,685.35,1.94371859]
[1752186696613,0.97747238,686.61,685.35,1.94371859]
[1752186696614,0.84568747,686.48,685.35,1.94371859]
[1752186696810,0.84568747,686.47,685.35,1.94371859]
[1752186697010,0.84568747,686.46,685.35,1.94371859]
[1752186697316,0.84566553,686.45,685.35,1.94371859]
[1752186697615,0.84568995,686.44,685.35,1.94372294]
[1752186697816,0.84568995,686.43,685.35,1.94372294]
[1752186698116,0.84568995,686.42,685.33,0.115]
[1752186698315,0.84568995,686.41,685.33,0.115]
[1752186698520,0.84568995,686.4,685.33,0.115]
[1752186698716,1.95495049,686.94,685.33,0.115]
[1752186698915,0.97749046,686.55,685.33,0.115]
[1752186699114,1.95495049,686.91,685.33,0.115]
[1752186699419,0.97747712,686.55,685.33,0.115]
[1752186699618,0.84569157,686.54,685.33,0.115]
[1752186699914,0.84569157,686.53,685.33,0.115]
[1752186700115,1.30330283,686.73,685.33,0.115]
[1752186700319,0.97765754,686.55,685.33,0.115]
[1752186700619,0.84584766,686.54,685.33,0.115]
[1752186700914,0.84584766,686.53,685.33,0.115]
[1752186701115,0.97765754,686.55,685.33,0.115]
[1752186701116,0.84584766,686.52,685.44,1.94408663]
[1752186701317,0.84584766,686.51,685.44,1.94408663]
[1752186701520,0.84584766,686.5,685.44,1.94408663]
[1752186701816,0.84584766,686.49,685.43,1.94408663]
[1752186702015,0.84584766,686.48,685.43,1.94408663]
[1752186702216,0.84584766,686.47,685.42,1.94408663]
[1752186702419,0.84584766,686.46,685.43,1.94408663]
[1752186702616,0.84584766,686.45,685.41,1.94408663]
[1752186702816,0.84584766,686.44,685.41,1.94408663]
[1752186703015,0.84584766,686.43,685.41,1.94408663]
[1752186703219,0.84584766,686.42,685.41,1.94408663]
[1752186703419,0.84584766,686.41,685.42,1.94408663]
[1752186703717,0.84584766,686.4,685.37,1.94408663]
[1752186703917,0.84584766,686.39,685.37,1.94408663]
[1752186704125,0.84584766,686.38,685.37,1.94408663]
[1752186704321,0.84584766,686.37,685.37,1.94408663]
[1752186704518,0.84584766,686.36,685.38,1.94408663]
[1752186704717,0.84584766,686.35,685.38,1.94408663]
[1752186705021,3.25903404,687.48,685.48,1.94408663]
[1752186705022,0.84584766,686.34,685.48,1.94408663]
[1752186705218,0.84584766,686.33,685.48,1.94408663]
[1752186705423,0.84584766,686.32,685.48,1.94408663]
[1752186705622,0.84584766,686.31,685.48,1.94408663]
[1752186705817,0.84584766,686.3,685.48,1.94408663]
[1752186706020,0.84584766,686.29,685.48,1.94408663]
[1752186706317,0.97765754,686.52,685.49,1.94408663]
[1752186706519,0.84598396,686.51,685.5,1.94408663]
[1752186706722,0.84598396,686.5,685.53,1.94408663]
[1752186706920,0.84598396,686.49,685.51,1.94408663]
[1752186707218,0.84598396,686.48,685.61,1.94408663]
[1752186707418,3.25903404,687.44,685.33,0.115]
[1752186707419,0.84598396,686.47,685.68,1.94408663]
[1752186707623,0.84598396,686.46,685.68,1.94408663]
[1752186707821,0.84598396,686.45,685.68,1.94408663]
[1752186708018,0.84598396,686.44,685.68,1.94408663]
[1752186708218,0.97765754,686.65,685.67,1.94408663]
[1752186708419,1.82327357,686.64,685.66,1.94408663]
[1752186708719,0.84561603,686.63,685.65,1.94408663]
[1752186708919,0.84561603,686.62,685.65,1.94408663]
[1752186709119,0.84561603,686.61,685.65,1.94408663]
[1752186709319,0.84561603,686.6,685.64,1.94408663]
[1752186709524,0.84561603,686.59,685.65,1.94408663]
[1752186709725,0.84561603,686.58,685.65,1.94408663]
[1752186709925,0.84561603,686.57,685.65,1.94408663]
[1752186710125,0.84561603,686.56,685.65,1.94408663]
[1752186710323,0.84561603,686.55,685.58,1.94408663]
[1752186710524,0.84561603,686.54,685.57,1.94408663]
[1752186710724,0.97765754,686.6,685.33,0.115]
[1752186710725,0.84561603,686.53,685.58,1.94408663]
[1752186710928,0.84561603,686.52,685.58,1.94408663]
[1752186711128,0.84561603,686.51,685.58,1.94408663]
[1752186711325,0.84561603,686.5,685.58,1.94408663]
[1752186711530,0.84561603,686.49,685.58,1.94408663]
[1752186711829,0.84561603,686.48,685.53,1.94408663]
[1752186712029,0.84561603,686.47,685.5,1.94408663]
[1752186712326,0.84561603,686.46,685.5,1.94408663]
[1752186712526,0.84561603,686.45,685.5,1.94408663]
[1752186712727,0.97765754,686.6,685.5,1.94408663]
[1752186712728,0.84561603,686.44,685.5,1.94408663]
[1752186713023,0.84561603,686.43,685.5,1.94408663]
[1752186713226,0.84561603,686.42,685.5,1.94408663]
[1752186713525,0.84561603,686.41,685.51,1.94408663]
[1752186713729,0.84561603,686.4,685.49,1.94408663]
[1752186713926,0.84561603,686.39,685.49,1.94408663]
[1752186714127,0.84561603,686.38,685.48,1.94408663]
[1752186714427,0.84561603,686.37,685.49,1.94408663]
[1752186714730,0.84561603,686.36,685.5,1.94408663]
[1752186714929,0.84561603,686.35,685.5,1.94408663]
[1752186715129,0.84561603,686.34,685.5,1.94408663]
[1752186715328,0.84429316,686.33,685.5,1.94408663]
[1752186715526,0.97765754,686.58,685.5,1.94408663]
[1752186715731,0.84429316,686.57,685.48,1.94408663]
[1752186716028,0.84429316,686.56,685.48,1.94408663]
[1752186716332,0.84429316,686.55,685.49,1.94408663]
[1752186716534,0.84429316,686.54,685.49,1.94408663]
[1752186716726,0.84429316,686.53,685.49,1.94408663]
[1752186716933,0.84429316,686.52,685.48,1.94408663]
[1752186717135,0.84429316,686.51,685.48,1.94408663]
[1752186717336,0.84429316,686.5,685.49,1.94408663]
[1752186717531,0.84429316,686.49,685.49,1.94408663]
[1752186717732,0.84429316,686.48,685.49,1.94408663]
[1752186717934,0.84429316,686.47,685.49,1.94408663]
[1752186718137,0.84429316,686.46,685.44,1.94408663]
[1752186718438,0.84429316,686.45,685.33,0.115]
[1752186718638,0.84429316,686.44,685.33,0.115]
[1752186718838,0.84429316,686.43,685.33,0.115]
[1752186719038,0.84429316,686.42,685.33,0.115]
[1752186719238,0.84429316,686.41,685.33,0.115]
[1752186719435,0.84429316,686.4,685.33,0.115]
[1752186719737,0.84429316,686.39,685.33,0.115]
[1752186719938,0.84429316,686.38,685.33,0.115]
[1752186720138,0.84429316,686.37,685.33,0.115]
[1752186720336,0.84429316,686.36,685.33,0.115]
[1752186720540,0.84429316,686.35,685.07,1.94408663]
[1752186720735,0.84429316,686.34,685.07,1.94408663]
[1752186720936,0.84429316,686.33,685.07,1.94408663]
[1752186721133,0.84429316,686.32,685.38,1.94408663]
[1752186721335,0.84429316,686.31,685.38,1.94408663]
[1752186721639,0.84429316,686.3,685.38,1.94408663]
[1752186721833,0.84429316,686.29,685.38,1.94408663]
[1752186722038,0.84429316,686.28,685.37,1.94408663]
[1752186722334,0.97765754,686.6,685.38,1.94408663]
[1752186722535,0.84496632,686.59,685.38,1.94408663]
[1752186722735,0.84496632,686.58,685.39,0.165]
[1752186723039,0.84496632,686.57,685.39,0.165]
[1752186723234,0.84496632,686.56,685.39,0.165]
[1752186723535,0.84496632,686.55,685.39,0.165]
[1752186723736,0.84496632,686.54,685.39,0.165]
[1752186723937,0.84496632,686.53,685.39,0.165]
[1752186724137,0.84496632,686.52,685.39,0.165]
[1752186724340,0.84496632,686.51,685.39,0.165]
[1752186724537,0.84496632,686.5,685.39,0.165]
[1752186724742,0.84496632,686.49,685.4,1.94408663]
[1752186724941,0.84496632,686.48,685.4,1.94408663]
[1752186725141,1.30354338,686.82,685.39,0.165]
[1752186725142,0.84496632,686.47,685.42,1.94408663]
[1752186725344,0.84496632,686.46,685.42,1.94408663]
[1752186725542,0.84496632,686.45,685.42,1.94408663]
[1752186725744,0.84496632,686.44,685.42,1.94408663]
[1752186725942,0.97765754,686.79,685.56,1.94408663]
[1752186726142,0.8448283,686.78,685.55,1.94408663]
[1752186726343,0.8448283,686.77,685.55,1.94408663]
[1752186726644,0.8448283,686.76,685.58,1.94408663]
[1752186726844,0.8448283,686.75,685.57,1.94408663]
[1752186727042,0.8448283,686.74,685.57,1.94408663]
[1752186727243,0.97765754,686.83,685.56,1.94408663]
[1752186727244,0.8448283,686.73,685.56,1.94408663]
[1752186727444,0.8448283,686.72,685.56,1.94408663]
[1752186727646,0.8448283,686.71,685.56,1.94408663]
[1752186727844,0.8448283,686.7,685.57,1.94408663]
[1752186728046,0.8448283,686.69,685.56,1.94408663]
[1752186728246,0.8448283,686.68,685.55,1.94408663]
[1752186728444,0.8448283,686.67,685.56,1.94408663]
[1752186728746,0.8448283,686.66,685.57,1.94408663]
[1752186728950,0.8448283,686.65,685.57,1.94408663]
[1752186729246,0.8448283,686.64,685.56,1.94408663]
[1752186729452,0.8448283,686.63,685.57,1.94408663]
[1752186729646,0.8448283,686.62,685.57,1.94408663]
[1752186729946,0.8448283,686.61,685.58,1.94408663]
[1752186730146,0.8448283,686.6,685.57,1.94408663]
[1752186730446,0.8448283,686.59,685.59,1.94408663]
[1752186730645,0.8448283,686.58,685.59,1.94408663]
[1752186730848,0.8448283,686.57,685.59,1.94408663]
[1752186731048,0.8448283,686.56,685.64,1.94408663]
[1752186731347,0.8448283,686.55,685.65,1.94408663]
[1752186731548,0.8448283,686.54,685.66,1.94408663]
[1752186731751,0.25349743,687.23,685.7,1.94408663]
[1752186731752,0.8448283,686.53,685.7,1.94408663]
[1752186731951,0.8448283,686.52,685.68,1.94408663]
[1752186732248,0.8448283,686.51,685.68,1.94408663]
[1752186732447,0.8448283,686.5,685.68,1.94408663]
[1752186732652,0.97765754,686.78,685.68,1.94408663]
[1752186732852,0.97765754,686.76,685.66,1.94408663]
[1752186733051,0.84475419,686.75,685.66,1.94408663]
[1752186733252,0.84475419,686.74,685.66,1.94408663]
[1752186733547,0.84475419,686.73,685.67,1.94408663]
[1752186733752,0.84475419,686.72,685.66,1.94408663]
[1752186733952,0.84475419,686.71,685.62,1.94408663]
[1752186734146,0.84475419,686.7,685.63,1.94408663]
[1752186734352,0.84475419,686.69,685.63,1.94408663]
[1752186734552,0.84475419,686.68,685.63,1.94408663]
[1752186734852,0.84475419,686.67,685.62,1.94408663]
[1752186735048,0.84475419,686.66,685.62,1.94408663]
[1752186735253,0.84475419,686.65,685.52,1.94408663]
[1752186735449,0.84475419,686.64,685.52,1.94408663]
[1752186735751,0.84475419,686.63,685.53,1.94408663]
[1752186735954,0.84511871,686.62,685.53,1.94408663]
[1752186736153,0.84511871,686.61,685.26,1.94408663]
[1752186736354,0.84511871,686.6,685.28,1.94408663]
[1752186736554,0.84511871,686.59,685.34,1.94408663]
[1752186736754,0.84511871,686.58,685.34,1.94408663]
[1752186736952,0.84511871,686.57,685.34,1.94408663]
[1752186737255,0.84511871,686.56,685.34,1.94408663]
[1752186737456,0.84511871,686.55,685.34,1.94408663]
[1752186737653,0.84511871,686.54,685.34,1.94408663]
[1752186737857,0.84511871,686.53,685.34,1.94408663]
[1752186738155,0.84511871,686.52,685.34,1.94408663]
[1752186738456,0.84511871,686.51,685.35,0.179]
[1752186738657,0.84511871,686.5,685.35,0.179]
[1752186738856,0.84511871,686.49,685.35,0.179]
[1752186739053,0.97867962,686.94,685.35,0.179]
[1752186739054,0.84511871,686.48,685.35,0.179]
[1752186739356,0.84511871,686.47,685.35,0.179]
[1752186739555,0.84511871,686.46,685.35,0.179]
[1752186739754,0.97867962,686.94,685.35,0.179]
[1752186740055,1.82392533,686.93,685.36,1.94408663]
[1752186740260,0.84524571,686.92,685.35,2.12308663]
[1752186740455,0.84524571,686.91,685.35,2.12308663]
[1752186740657,0.84524571,686.9,685.35,2.12308663]
[1752186740861,0.84524571,686.89,685.35,2.12308663]
[1752186741060,0.97867962,686.87,685.45,1.94408663]
[1752186741261,0.84524571,686.86,685.45,1.94408663]
[1752186741560,0.84524571,686.85,685.45,1.94408663]
[1752186741756,0.84524571,686.84,685.45,1.94408663]
[1752186742057,0.97867962,686.87,685.35,0.179]
[1752186742058,0.84524571,686.83,685.48,1.94408663]
[1752186742260,0.84524571,686.82,685.48,1.94408663]
[1752186742461,1.82392533,686.81,685.56,1.94408663]
[1752186742657,0.84524571,686.8,685.56,1.94408663]
[1752186742962,0.84524571,686.79,685.56,1.94408663]
[1752186743257,0.84524571,686.78,685.56,1.94408663]
[1752186743458,0.97867962,686.75,685.67,1.94408663]
[1752186743658,0.84524571,686.74,685.68,1.94408663]
[1752186743860,0.84524571,686.73,685.68,1.94408663]
[1752186744058,0.84524571,686.72,685.7,1.94408663]
[1752186744259,0.84524571,686.71,685.7,1.94408663]
[1752186744460,0.84524571,686.7,685.7,1.94408663]
[1752186744662,0.84524571,686.69,685.7,1.94408663]
[1752186744860,0.84524571,686.68,685.69,1.94408663]
[1752186745161,0.84524571,686.67,685.69,1.94408663]
[1752186745360,0.84524571,686.66,685.69,1.94408663]
[1752186745559,0.84524571,686.65,685.69,1.94408663]
[1752186745762,0.84524571,686.64,685.69,1.94408663]
[1752186745961,0.84524571,686.63,685.69,1.94408663]
[1752186746161,0.84524571,686.62,685.69,1.94408663]
[1752186746362,0.84524571,686.61,685.69,1.94408663]
[1752186746566,0.84524571,686.6,685.69,1.94408663]
[1752186746768,0.84524571,686.59,685.71,1.94408663]
[1752186747068,0.84524571,686.58,685.69,1.94408663]
[1752186747276,0.84524571,686.57,685.69,1.94408663]
[1752186747562,0.84524571,686.56,685.69,1.94408663]
[1752186747765,0.84524571,686.55,685.69,1.94408663]
[1752186747963,0.84524571,686.54,685.69,1.94408663]
[1752186748162,0.84524571,686.53,685.69,1.94408663]
[1752186748363,0.84524571,686.52,685.69,1.94408663]
[1752186748567,0.84524571,686.51,685.7,1.94408663]
[1752186748765,0.84524571,686.5,685.7,1.94408663]
[1752186749068,1.30354338,686.89,685.7,1.94408663]
[1752186749264,0.84634264,686.88,685.7,1.94408663]
[1752186749869,1.30354338,686.89,685.7,1.94408663]
[1752186750466,1.95531508,687.03,685.7,1.94408663]
[1752186750670,0.25349743,687.23,685.35,0.179]
[1752186754172,0.97885114,686.73,685.72,1.94139308]
[1752186754372,0.84650949,686.72,685.72,1.94139308]
[1752186754567,0.84650949,686.71,685.73,1.94139308]
[1752186754772,0.84650949,686.7,685.73,1.94139308]
[1752186754972,0.84650949,686.69,685.73,1.94139308]
[1752186755181,0.84650949,686.68,685.73,1.94139308]
[1752186755379,0.84650949,686.67,685.73,1.94139308]
[1752186755670,0.84650949,686.66,685.73,1.94139308]
[1752186755873,0.84650949,686.65,685.73,1.94139308]
[1752186756172,0.84650949,686.64,685.67,1.94139308]
[1752186756374,0.84650949,686.63,685.67,1.94139308]
[1752186756570,0.84650949,686.62,685.63,1.94139308]
[1752186756870,0.84650949,686.61,685.63,1.94139308]
[1752186757072,0.84650949,686.6,685.64,1.94139308]
[1752186757270,0.84650949,686.59,685.65,1.94139308]
[1752186757574,0.84650949,686.58,685.64,1.94139308]
[1752186757872,0.84650949,686.57,685.64,1.94139308]
[1752186758074,0.84650949,686.56,685.66,1.94139308]
[1752186758274,0.84650949,686.55,685.67,1.94139308]
[1752186758474,0.84650949,686.54,685.64,1.94139308]
[1752186758675,0.84650949,686.53,685.64,1.94139308]
[1752186758971,0.84650949,686.53,685.35,0.179]
[1752186758972,0.84650949,686.52,685.71,1.94139308]
[1752186759171,0.84650949,686.51,685.72,1.94139308]
[1752186759376,0.84650949,686.5,685.72,1.94139308]
[1752186759579,0.97885114,686.78,685.72,1.94139308]
[1752186759774,0.84677944,686.77,685.72,1.94139308]
[1752186759979,0.84677944,686.76,685.36,1.94139308]
[1752186760274,0.84677944,686.75,685.37,1.94139308]
[1752186760474,0.84677944,686.74,685.38,1.94139308]
[1752186760679,0.84677944,686.73,685.38,1.94139308]